Cogmind - Beta 15 @@@ ROGUE MODE // 2025.08.29 @ 22:25:40 Player: chebyrekser Result: Escaped! Performance ------------- Evolutions (9) 4500 Regions Visited (17) 3400 Robots Destroyed (131) 655 Value Destroyed (3207) 3207 Prototype IDs (20) 400 Alien Tech Used (0) 0 Bonus (3000) 3000 TOTAL SCORE: 15162 Bonus ------- Win 3000 Cogmind --------- Core Integrity 1555/1600 Matter 52/300 Energy 258/260 System Corruption 1% Temperature Cool (5) Movement Flying (29) Location To Epsilon Eridani Parts ------- > --- POWER (2) -------- Light Antimatter Reactor Light Quantum Reactor > --- PROPULSION (6) --- Xenon Bombardment Thruster Q-thruster Q-thruster Q-thruster Impulse Thruster Array > --- UTILITY (14) ----- Small Storage Unit Enhanced Optical Array Advanced Sensor Array Improved Signal Interpreter Long-range Terrain Scanner Advanced Terrain Scan Processor Advanced Targeting Computer Advanced Targeting Computer Hacking Suite Hacking Suite Improved Hacking Suite System Shield System Shield Improved System Shield > --- WEAPON (3) ------- Phasing Sabre Plasma Sword Plasma Sword > --- INVENTORY (8) ---- Enhanced Nuclear Core Field Propulsion Array Q-thruster Electron Diverter Enhanced Nova Cannon Mini Smartbomb Launcher Plasma Cutter Peak State ------------ > --- POWER ------------ Light Antimatter Reactor Light Quantum Reactor > --- PROPULSION ------- Xenon Bombardment Thruster Q-thruster Q-thruster Q-thruster Impulse Thruster Array > --- UTILITY ---------- Small Storage Unit Enhanced Optical Array Advanced Sensor Array Improved Signal Interpreter Long-range Terrain Scanner Advanced Terrain Scan Processor Advanced Targeting Computer Advanced Targeting Computer Hacking Suite Hacking Suite Improved Hacking Suite System Shield System Shield Improved System Shield > --- WEAPON ----------- Enhanced Nova Cannon Plasma Sword Plasma Sword > --- INVENTORY -------- Enhanced Nuclear Core Field Propulsion Array Q-thruster Electron Diverter Mini Smartbomb Launcher Plasma Cutter Phasing Sabre [Rating: 141] Favorites ----------- Power Improved Ion Engine Engine Improved Ion Engine Power Core Enhanced Nuclear Core Reactor Particle Reactor Propulsion Light Treads Treads Light Treads Wheel Compact Wheel Flight Unit Q-thruster Utility Seismic Detector Device Seismic Detector Storage High-capacity Storage Unit Processor Enhanced Optical Array Hackware Hacking Suite Protection Improved Light Armor Plating Weapon Particle Gun Energy Gun Particle Gun Energy Cannon Plasma Cannon Ballistic Gun Light Assault Rifle Launcher Mini Smartbomb Launcher Special Weapon Mining Laser Slashing Weapon Plasma Sword Piercing Weapon Spear Build | -11 -10 -10 -9 -9 -9 -8 -8 -7 -6 -5 -5 -5 -4 -3 -3 -2 -1 ------- Run | Yrd Mat Min Mat Min Exi Min Mat Fac Fac Fac Upp Upp Fac Res Tes Res Acc Slots Evolved 18 | . . . 2 . . . 2 2 2 2 . . 2 2 . 2 2 Power 1 | . . . . . . . . . . . . . 1 . . . . Propulsion 4 | . . . 1 . . . 1 1 1 . . . . . . . . Utility 12 | . . . 1 . . . 1 . 1 2 . . 1 2 . 2 2 Weapon 1 | . . . . . . . . 1 . . . . . . . . . Parts Attached 133 | 8 12 3 12 2 2 10 32 15 5 4 2 . 2 6 6 5 7 Power 17 | 2 1 1 1 . . 1 6 1 . . . . . 1 . 2 1 Engine 11 | 2 1 1 1 . . 1 5 . . . . . . . . . . Core 2 | . . . . . . . 1 1 . . . . . . . . . Reactor 4 | . . . . . . . . . . . . . . 1 . 2 1 Propulsion 42 | 2 2 2 4 1 . 3 14 6 1 . . . . 4 . 2 1 Treads 18 | 1 1 1 3 1 . 3 8 . . . . . . . . . . Leg . | . . . . . . . . . . . . . . . . . . Wheel 10 | 1 1 1 1 . . . 6 . . . . . . . . . . Hover . | . . . . . . . . . . . . . . . . . . Flight 14 | . . . . . . . . 6 1 . . . . 4 . 2 1 Utility 38 | 2 2 . 5 . . 4 5 4 3 4 . . 2 1 1 1 4 Device 15 | 1 . . 5 . . 3 1 . 2 1 . . 1 . 1 . . Storage 5 | 1 1 . . . . 1 1 1 . . . . . . . . . Processor 6 | . . . . . . . . . 1 2 . . . 1 . . 2 Hackware 8 | . . . . . . . . 3 . 1 . . 1 . . 1 2 Protection 4 | . 1 . . . . . 3 . . . . . . . . . . Artifact . | . . . . . . . . . . . . . . . . . . Weapon 36 | 2 7 . 2 1 2 2 7 4 1 . 2 . . . 5 . 1 Energy Gun 8 | . 4 . 1 . . 1 2 . . . . . . . . . . Energy Cannon 6 | . . . . . . . 2 1 . . . . . . 2 . 1 Ballistic Gun 12 | 2 3 . 1 . 2 1 3 . . . . . . . . . . Ballistic Cannon . | . . . . . . . . . . . . . . . . . . Launcher 1 | . . . . . . . . . . . . . . . 1 . . Special Weapon 1 | . . . . 1 . . . . . . . . . . . . . Impact Weapon . | . . . . . . . . . . . . . . . . . . Slashing Weapon 6 | . . . . . . . . 1 1 . 2 . . . 2 . . Piercing Weapon 2 | . . . . . . . . 2 . . . . . . . . . Special Melee Weapon . | . . . . . . . . . . . . . . . . . . Unidentified Prototypes 12 | . . . . . 1 . 5 . . 1 . . . . 5 . . Parts Lost 27 | . 6 3 3 . . 4 7 1 . . 1 . . . . 2 . Power 4 | . 1 1 1 . . 1 . . . . . . . . . . . Propulsion 11 | . 1 1 1 . . 2 3 1 . . 1 . . . . 1 . Utility 5 | . 1 . . . . 1 2 . . . . . . . . 1 . Weapon 7 | . 3 1 1 . . . 2 . . . . . . . . . . Highest Loss Streak 4 | . 2 3 2 . . 4 2 1 . . 1 . . . . 2 . To Critical Strikes 1 | . . . 1 . . . . . . . . . . . . . . Average Backups 16 | 4 14 18 18 20 19 18 23 7 6 6 7 7 7 6 7 6 7 Power 2 | 1 3 2 1 2 2 2 2 1 1 1 1 1 1 1 1 1 1 Propulsion 3 | 3 5 5 4 5 4 2 4 1 . . . . . . 2 2 3 Utility 4 | . 3 6 5 4 4 4 6 1 2 1 2 3 3 1 1 . . Weapon 5 | . 2 3 5 8 7 7 9 2 2 2 2 2 2 2 2 1 2 Tool/Special . | . . . . . . . . . . . . . . . . . . Unused Backups 46 | . 2 . 8 1 3 1 17 3 1 1 1 . . . 1 . 7 Power 9 | . . . 2 . . . 5 . . . 1 . . . . . 1 Propulsion 8 | . 1 . 1 . 1 . . . . . . . . . . . 5 Utility 10 | . 1 . 1 1 . 1 3 3 . . . . . . . . . Weapon 18 | . . . 4 . 2 . 9 . 1 1 . . . . 1 . . Tool/Special 1 | . . . . . . . . . . . . . . . . . 1 Average Slot Usage (%) 96 | . 90 99 98 100 99 99 97 90 98 99 98 94 88 89 94 90 86 Engine 7 | . 14 14 10 11 11 10 5 . . . . . . . . . . Core 1 | . . . . . . . 3 7 6 5 5 5 5 1 4 3 . Treads 14 | . 13 15 22 22 22 21 18 1 . . . . . . . . . Wheel 9 | . 14 11 11 11 11 11 17 1 . . . . . . . . . Flight 7 | . . . . . . . . 31 38 35 33 29 26 23 23 21 20 Device 13 | . 4 . 18 22 22 22 17 8 6 5 4 5 5 8 9 8 8 Storage 9 | . 14 14 11 11 11 11 9 5 6 5 5 5 5 4 4 4 4 Processor 2 | . . . . . . . . . 5 15 11 11 10 14 14 13 16 Hackware 4 | . . . . . . . . 12 13 12 17 17 20 19 19 20 18 Protection 2 | . . 14 2 . . . 8 1 . . . . . . . . . Energy Gun 5 | . 7 10 10 9 10 11 . . . . . . . . . . . Energy Cannon 1 | . . . . . . . 8 1 . . . . . . . . . Ballistic Gun 9 | . 20 17 11 11 10 11 8 1 . . . . . . . . . Slashing Weapon 2 | . . . . . . . . 5 9 11 11 17 15 14 13 12 10 Peak Build Rating 141 | 7 10 9 16 16 29 26 36 38 51 60 62 61 69 115 133 124 141 Average Rating 34 | 6 7 8 12 15 16 20 31 33 48 57 57 61 66 94 118 122 129 On Entrance 45 | . 7 9 9 16 16 17 26 34 38 50 57 61 61 67 115 120 122 Naked Turns . | . . . . . . . . . . . . . . . . . . Heaviest Build 105 | 13 50 50 54 54 54 97 105 103 20 20 24 24 25 44 45 45 45 Greatest Support 46 | 20 20 40 16 16 16 16 32 26 29 29 29 25 25 45 45 46 46 Greatest Overweight (x) 10 | . 4 4 3 3 3 6 10 3 . . . . . . . 3 . Average Overweight (x) 1 | . 3 3 2 3 3 3 4 . . . . . . . . . . Largest Inventory Capacity 25 | 8 20 20 20 20 20 25 25 25 8 8 8 8 8 8 8 8 8 Average Capacity 17 | 7 19 20 20 20 20 20 25 8 8 8 8 8 8 8 8 8 8 Most Carried 25 | 7 20 19 20 20 20 22 25 25 8 8 8 8 8 8 8 8 8 Average Carried 16 | 5 14 18 18 19 19 19 24 7 7 7 8 8 7 7 7 6 7 Final Capacity 25 | 8 20 20 20 20 20 25 25 8 8 8 8 8 8 8 8 8 8 Final Carried 25 | 7 19 17 20 20 20 22 25 7 8 8 8 8 8 8 7 8 8 Class Distribution -------------------- 40% | Mutant 35% | Scavenger-Mutant 16% | Hacker-Scout 5% | Hacker-Sprinter Dominant Class ---------------- Mutant | -10/Materials Mutant | -10/Mines Scavenger-Mutant | -9/Materials Mutant | -9/Mines Mutant | -9/Exiles Scavenger-Mutant | -8/Mines Scavenger-Mutant | -8/Materials Hacker-Sprinter | -7/Factory Hacker-Sprinter | -6/Factory Hacker-Scout | -5/Factory Hacker-Scout | -5/Upper Caves Hacker-Scout | -5/Upper Caves Hacker-Scout | -4/Factory Hacker-Scout | -3/Research Hacker-Scout | -3/Testing Hacker-Scout | -2/Research Wizard-Scout | -1/Access Resources | -11 -10 -10 -9 -9 -9 -8 -8 -7 -6 -5 -5 -5 -4 -3 -3 -2 -1 ----------- Run | Yrd Mat Min Mat Min Exi Min Mat Fac Fac Fac Upp Upp Fac Res Tes Res Acc Matter Collected 2885 | 277 405 67 253 70 30 224 884 54 148 32 59 30 10 . 240 13 89 Remotely . | . . . . . . . . . . . . . . . . . . Salvage Created 5046 | 109 815 143 509 80 . 369 1756 54 138 154 113 . 155 . 335 227 89 Parts 274 | 6 55 5 42 7 . 22 71 6 11 5 9 . 1 . 12 13 9 Haulers Intercepted 9 | . 2 . 3 . . . 4 . . . . . . . . . . Recyclers Shooed 7 | . 5 . . . . . 2 . . . . . . . . . . Parts Field Recycled . | . . . . . . . . . . . . . . . . . . Retrieved Matter . | . . . . . . . . . . . . . . . . . . Parts Self-Destructed 9 | . . . . . . . . . . . 9 . . . . . . Prevented . | . . . . . . . . . . . . . . . . . . Kills | -11 -10 -10 -9 -9 -9 -8 -8 -7 -6 -5 -5 -5 -4 -3 -3 -2 -1 ------- Run | Yrd Mat Min Mat Min Exi Min Mat Fac Fac Fac Upp Upp Fac Res Tes Res Acc Combat Hostiles Destroyed 78 | . 18 2 12 3 . 10 22 . . . 2 . . . . 9 . Melee 4 | . . . . . . . . . . . 2 . . . . 2 . Guns 61 | . 18 2 12 3 . 10 16 . . . . . . . . . . Cannons 6 | . . . . . . . 6 . . . . . . . . . . AOE 7 | . . . . . . . . . . . . . . . . 7 . Classes Destroyed 15 | 2 5 . 2 1 . . 4 . . . 1 . . . . . . Worker 8 | . . . 1 1 . . 2 . 3 . . . . . . 1 . Builder 9 | . . . . . . . 2 1 2 . . . . . 1 . 3 Tunneler 5 | 2 . . 1 1 . 1 . . . . . . . . . . . Hauler 9 | . 2 . 3 . . . 4 . . . . . . . . . . Recycler 12 | 1 . 1 . . . . 5 . . 1 . . 1 . 2 1 . Mechanic 1 | . . . . . . . 1 . . . . . . . . . . Operator 4 | . 2 . . . . . . 1 . . . . . . . . 1 Watcher 8 | . 1 . 2 . . . 3 . 1 . . . . . 1 . . Swarmer 27 | . 4 . 6 . . 4 4 . . . . . . . . 9 . Grunt 39 | . 14 2 5 . . 6 12 . . . . . . . . . . Brawler 1 | . . . . . . . 1 . . . . . . . . . . Duelist 1 | . . . . . . . 1 . . . . . . . . . . Sentry 5 | . . . 1 . . . 4 . . . . . . . . . . Programmer 2 | . . . . . . . . . . . 2 . . . . . . Assembled 3 | . . . . 3 . . . . . . . . . . . . . Best Kill Streak 10 | 2 6 2 10 3 . 4 5 2 3 1 1 . 1 . 2 6 2 Combat Bots Only 6 | . 6 2 6 3 . 4 5 . . . 1 . . . . 5 . Max Kills in Single Turn 3 | 1 1 1 1 1 . 2 3 1 1 1 1 . 1 . 1 3 1 Gunslinging 1 | . . . . . . 1 . . . . . . . . . . . Exploded 3 | . . . . . . . . . . . . . . . . 3 . Melee 1 | . . . . . . . . . . . 1 . . . . 1 . Uniques/NPCs Destroyed . | . . . . . . . . . . . . . . . . . . Combat | -11 -10 -10 -9 -9 -9 -8 -8 -7 -6 -5 -5 -5 -4 -3 -3 -2 -1 -------- Run | Yrd Mat Min Mat Min Exi Min Mat Fac Fac Fac Upp Upp Fac Res Tes Res Acc Hostile Shots Fired 486 | . 91 35 45 10 . 49 141 . . 8 4 . 2 2 . 74 25 Missed 152 | . 26 10 8 . . 7 30 . . 5 1 . 2 2 . 44 17 Hits 334 | . 65 25 37 10 . 42 111 . . 3 3 . . . . 30 8 Melee 5 | . . . . . . . 5 . . . . . . . . . . Projectile 329 | . 65 25 37 10 . 42 106 . . 3 3 . . . . 30 8 Critical Strikes 11 | . . . 4 . . . 6 . . . . . . . . 1 . Damage Taken 4919 | . 741 311 407 128 . 640 1659 69 . 59 61 . . . . 656 188 Core 730 | . 81 35 46 . . 19 245 . . 25 42 . . . . 192 45 Absorbed by Shields . | . . . . . . . . . . . . . . . . . . Redirected to Shielding 17 | . . 17 . . . . . . . . . . . . . . . Regen/Repaired (Parts) 47 | . . . . . . . 47 . . . . . . . . . . Core Remaining (%) 87 | 100 . 53 . . . 83 55 100 100 . . 93 100 . 100 86 97 Volleys Fired 382 | 15 88 21 69 15 . 39 112 3 . . . . . . 6 4 10 Largest 2 | 2 2 2 2 2 . 2 2 1 . . . . . . 1 1 1 Hottest 120 | 40 85 85 85 100 . 88 105 80 . . . . . . 113 80 120 Shots Fired 729 | 30 173 41 135 25 . 78 224 3 . . . . . . 6 4 10 Gun 588 | 30 173 41 135 20 . 78 111 . . . . . . . . . . Cannon 132 | . . . . . . . 113 3 . . . . . . 6 . 10 Launcher 4 | . . . . . . . . . . . . . . . . 4 . Special 5 | . . . . 5 . . . . . . . . . . . . . Kinetic 420 | 30 124 32 74 10 . 39 111 . . . . . . . . . . Thermal 287 | . 31 9 61 15 . 39 113 3 . . . . . . 6 . 10 Explosive 4 | . . . . . . . . . . . . . . . . 4 . Electromagnetic 18 | . 18 . . . . . . . . . . . . . . . . Robot Hit Streak 24 | 4 12 9 16 5 . 11 24 . . . . . . . . 8 . Robot Miss Streak 8 | 3 3 2 8 1 . 3 7 . . . . . . . . . . Penetration Max . | . . . . . . . . . . . . . . . . . . Secondary Targets 4 | . . 1 . . . 3 . . . . . . . . . . . Max Gunslinging Chain 1 | . . 1 . . . 1 . . . . . . . . . . . Shots Hit Robots 489 | 18 118 27 71 16 . 56 152 2 6 1 4 . 3 . 6 4 5 Core Hits 217 | 6 50 8 29 9 . 23 59 2 3 1 4 . 1 . 3 16 3 Critical Kills 2 | . 1 . . . . . 1 . . . . . . . . . . Critical Parts Destroyed 4 | . 1 1 . 1 . . 1 . . . . . . . . . . Critical Strikes 14 | . 4 1 3 1 . . 3 . 1 . . . . . 1 . . Burn 4 | . 1 . 3 . . . . . . . . . . . . . . Meltdown 1 | . . . . . . . 1 . . . . . . . . . . Destroy 6 | . 2 1 . 1 . . 2 . . . . . . . . . . Corrupt 1 | . 1 . . . . . . . . . . . . . . . . Sever 1 | . . . . . . . . . . . . . . . 1 . . Impale 1 | . . . . . . . . . 1 . . . . . . . . Melee Attacks 141 | . . . . . . . . 10 17 8 9 . 6 7 25 32 27 Impact . | . . . . . . . . . . . . . . . . . . Slashing 115 | . . . . . . . . 1 6 8 3 . 6 7 25 32 27 Piercing 26 | . . . . . . . . 9 11 . 6 . . . . . . Sneak Attacks 14 | . . . . . . . . 1 5 1 . . 1 . 3 . 3 Combat Hostiles . | . . . . . . . . . . . . . . . . . . Follow-up Attacks 6 | . . . . . . . . . 1 . . . 1 . 2 1 1 Damage Inflicted 9585 | 130 1215 231 876 215 . 767 3492 76 412 62 113 . 160 . 399 1063 374 Guns 4808 | 130 1215 231 876 191 . 767 1398 . . . . . . . . . . Cannons 2094 | . . . . . . . 2094 . . . . . . . . . . Explosions 986 | . . . . . . . . . . . . . . . . 986 . Melee 1673 | . . . . . . . . 76 412 62 113 . 160 . 399 77 374 Ramming . | . . . . . . . . . . . . . . . . . . Kinetic 3107 | 130 654 185 312 102 . 326 1398 . . . . . . . . . . Thermal 3634 | . 376 46 564 113 . 441 2094 . . . . . . . . . . Explosive 986 | . . . . . . . . . . . . . . . . 986 . Electromagnetic 185 | . 185 . . . . . . . . . . . . . . . . Impact . | . . . . . . . . . . . . . . . . . . Slashing 1213 | . . . . . . . . . 141 62 . . 160 . 399 77 374 Piercing 460 | . . . . . . . . 76 271 . 113 . . . . . . Highest Corruption 2 | . . . . . . . 1 . . . 2 2 . . . 1 1 Average Corruption 1 | . . . . . . . 1 . . . 2 2 . . . 1 1 Corruption Purged . | . . . . . . . . . . . . . . . . . . Corruption Blocked . | . . . . . . . . . . . . . . . . . . Effects 18 | . . . . . . . 14 . . . 3 1 . . . . . Message Errors 5 | . . . . . . . 2 . . . 2 1 . . . . . Matter Fused 6 | . . . . . . . 5 . . . 1 . . . . . . Energy Discharges 2 | . . . . . . . 2 . . . . . . . . . . Parts Rejected 1 | . . . . . . . 1 . . . . . . . . . . Data Loss (minor) 1 | . . . . . . . 1 . . . . . . . . . . Misfires 2 | . . . . . . . 2 . . . . . . . . . . Weapon Failures 1 | . . . . . . . 1 . . . . . . . . . . Overload Shots . | . . . . . . . . . . . . . . . . . . Overflow Damage 420 | . . . . . . . 23 . 117 . . . 25 . 109 61 85 Projectiles 23 | . . . . . . . 23 . . . . . . . . . . Explosions 61 | . . . . . . . . . . . . . . . . 61 . Melee 336 | . . . . . . . . . 117 . . . 25 . 109 . 85 Knockbacks . | . . . . . . . . . . . . . . . . . . Impact . | . . . . . . . . . . . . . . . . . . Kinetic . | . . . . . . . . . . . . . . . . . . Secondary . | . . . . . . . . . . . . . . . . . . Self-Inflicted Damage 22 | . . . . . . . . . . . . . . . . 22 . Shots 1 | . . . . . . . . . . . . . . . . 1 . Rammed . | . . . . . . . . . . . . . . . . . . Targets Rammed . | . . . . . . . . . . . . . . . . . . Kicked . | . . . . . . . . . . . . . . . . . . Crushed . | . . . . . . . . . . . . . . . . . . Highest Temperature 316 | . 316 170 24 12 . 15 84 114 156 17 74 . . 17 240 84 240 Average Temperature 41 | . 67 68 10 8 . 1 23 58 54 6 26 . . 8 39 13 82 Received Heat Transfer 1907 | . 369 180 177 20 . 306 837 . . 18 . . . . . . . Siege Activations . | . . . . . . . . . . . . . . . . . . Martial Activations . | . . . . . . . . . . . . . . . . . . Shielding Activations . | . . . . . . . . . . . . . . . . . . Robots Disrupted . | . . . . . . . . . . . . . . . . . . Combat Hostiles . | . . . . . . . . . . . . . . . . . . Robots Corrupted . | . . . . . . . . . . . . . . . . . . Combat Hostiles . | . . . . . . . . . . . . . . . . . . Parts Fried 3 | . 3 . . . . . . . . . . . . . . . . Impact Corruptions . | . . . . . . . . . . . . . . . . . . Robots Melted 1 | . . . . . . . 1 . . . . . . . . . . Combat Hostiles . | . . . . . . . . . . . . . . . . . . Parts Melted 11 | . . . 4 . . 2 5 . . . . . . . . . . Heat Transferred 8122 | . 962 111 1591 272 . 1036 4150 . . . . . . . . . . Parts Sabotaged . | . . . . . . . . . . . . . . . . . . Parts Stolen . | . . . . . . . . . . . . . . . . . . Parts Stripped . | . . . . . . . . . . . . . . . . . . Power Chain Reactions . | . . . . . . . . . . . . . . . . . . Alert | -11 -10 -10 -9 -9 -9 -8 -8 -7 -6 -5 -5 -5 -4 -3 -3 -2 -1 ------- Run | Yrd Mat Min Mat Min Exi Min Mat Fac Fac Fac Upp Upp Fac Res Tes Res Acc Maximum Alert Level 1 | . . . 1 . . . 1 . . . . . . . . 1 1 Low Security (%) 93 | 100 100 100 94 100 . 100 94 100 100 100 . . 100 100 100 87 . Level 1 6 | . . . 5 . . . 5 . . . . . . . . 12 100 Level 2 . | . . . . . . . . . . . . . . . . . . Level 3 . | . . . . . . . . . . . . . . . . . . Level 4 . | . . . . . . . . . . . . . . . . . . Level 5 . | . . . . . . . . . . . . . . . . . . High Security . | . . . . . . . . . . . . . . . . . . Max Security . | . . . . . . . . . . . . . . . . . . Peak Influence 388 | 5 159 50 213 50 . 82 252 51 27 112 . . 13 10 45 388 265 Initial 226 | . . 10 3 45 . . . 35 . . . . . . . . 226 Average 53 | . 65 7 80 5 . 19 73 26 7 54 . . 3 1 8 82 243 Influence Increases 3376 | 15 583 70 387 10 . 235 803 76 85 217 60 . 22 20 120 521 152 Destroy 0b10 Robot/C 1520 | . 360 40 240 . . 200 440 . . 20 40 . . . . 180 . Destroy 0b10 Robot/NC 280 | 15 25 5 35 10 . 5 85 10 30 5 . . 5 . 20 10 20 Destroy Leader 344 | . 86 10 60 . . 30 114 . 2 . 20 . . . 2 20 . Successful Hack 235 | . 7 . 20 . . . 1 46 5 . . . 13 10 53 47 33 Select Force Hacks 60 | . 60 . . . . . . . . . . . . . . . . Disable Machine 105 | . . 15 . . . . 30 15 15 . . . . . 15 . 15 Destroy Structure 292 | . . . 2 . . . 28 5 3 12 . . 4 10 30 129 69 Partial Spotted 135 | . . . . . . . . . 30 45 . . . . . 45 15 Lose Combat Pursuer 405 | . 45 . 30 . . . 105 . . 135 . . . . . 90 . Influence Decreases 3138 | 15 556 86 282 126 . 235 724 155 84 106 172 . 22 18 120 145 292 Entered New Map 339 | . . 17 8 71 . . . 44 . 1 42 . . . 2 2 152 Time Decay 2186 | 15 377 69 232 55 . 215 471 92 84 55 120 . 22 18 118 113 130 Lost Part 210 | . 60 . 30 . . 20 60 10 . . 10 . . . . 20 . Lost Ally 79 | . . . . . . . . 9 . 50 . . . . . 10 10 Purge Threat 324 | . 119 . 12 . . . 193 . . . . . . . . . . Squads Dispatched 16 | . 5 . . . . . 3 . 1 . . . . 1 3 2 1 Investigation 7 | . 3 . . . . . 2 . . . . . . 1 1 . . Extermination 6 | . . . . . . . . . 1 . . . . . 2 2 1 Reinforcement 3 | . 2 . . . . . 1 . . . . . . . . . . Assault . | . . . . . . . . . . . . . . . . . . Garrison . | . . . . . . . . . . . . . . . . . . Intercept . | . . . . . . . . . . . . . . . . . . Searches Triggered . | . . . . . . . . . . . . . . . . . . Construction Impeded 1 | . . . . . . . 1 . . . . . . . . . . Haulers Reinforced . | . . . . . . . . . . . . . . . . . . Active Scanning Responses . | . . . . . . . . . . . . . . . . . . Cargo Convoy Interrupts . | . . . . . . . . . . . . . . . . . . Stealth | -11 -10 -10 -9 -9 -9 -8 -8 -7 -6 -5 -5 -5 -4 -3 -3 -2 -1 --------- Run | Yrd Mat Min Mat Min Exi Min Mat Fac Fac Fac Upp Upp Fac Res Tes Res Acc Distress Signals 6 | . . . 2 . . . 2 . . 1 . . . . . 1 . Communications Jammed . | . . . . . . . . . . . . . . . . . . Distress Signals . | . . . . . . . . . . . . . . . . . . Times Spotted 166 | . 30 4 20 3 . 10 35 4 2 12 2 . 1 1 4 25 13 Peak Tracking Total 11 | . 5 2 6 3 . 4 5 1 1 9 1 . . 1 2 11 10 Tactical Retreats 14 | . 1 . 2 . . . 5 . . 2 . . . . . 4 . Traps | -11 -10 -10 -9 -9 -9 -8 -8 -7 -6 -5 -5 -5 -4 -3 -3 -2 -1 ------- Run | Yrd Mat Min Mat Min Exi Min Mat Fac Fac Fac Upp Upp Fac Res Tes Res Acc Traps Triggered 8 | . 2 . . . . . 3 1 . . . . . 1 . 1 . Indirectly . | . . . . . . . . . . . . . . . . . . Trap Hack Attempts . | . . . . . . . . . . . . . . . . . . Triggered . | . . . . . . . . . . . . . . . . . . Disarmed 8 | . . . 4 . . . . . . . . . . . 4 . . Reprogrammed . | . . . . . . . . . . . . . . . . . . Reused . | . . . . . . . . . . . . . . . . . . Traps Extracted . | . . . . . . . . . . . . . . . . . . Installed . | . . . . . . . . . . . . . . . . . . Triggered . | . . . . . . . . . . . . . . . . . . Machines | -11 -10 -10 -9 -9 -9 -8 -8 -7 -6 -5 -5 -5 -4 -3 -3 -2 -1 ---------- Run | Yrd Mat Min Mat Min Exi Min Mat Fac Fac Fac Upp Upp Fac Res Tes Res Acc Machines Disabled 9 | . . 1 1 . . . 2 1 1 . . . . . 2 . 1 Max in Single Turn 1 | . . 1 1 . . . 1 1 1 . . . . . 1 . 1 Garrison Access 5 | . . . . . . . . . 2 1 . . . . 1 1 . Machines Repaired . | . . . . . . . . . . . . . . . . . . Machines Dismantled . | . . . . . . . . . . . . . . . . . . Machines Sabotaged . | . . . . . . . . . . . . . . . . . . Overloaded Fab Kills . | . . . . . . . . . . . . . . . . . . Hacking | -11 -10 -10 -9 -9 -9 -8 -8 -7 -6 -5 -5 -5 -4 -3 -3 -2 -1 --------- Run | Yrd Mat Min Mat Min Exi Min Mat Fac Fac Fac Upp Upp Fac Res Tes Res Acc Machines Accessed 64 | . 7 . 7 . . . 10 3 9 3 1 . 2 2 9 6 5 Terminals 47 | . 5 . 6 . . . 8 3 5 2 . . 2 2 7 3 4 Fabricators 2 | . . . . . . . . . 2 . . . . . . . . Repair Stations 2 | . . . . . . . 1 . . . . . . . . 1 . Recycling Units 2 | . 2 . . . . . . . . . . . . . . . . Scanalyzers 4 | . . . 1 . . . 1 . . . . . . . 1 1 . Garrison Access 6 | . . . . . . . . . 2 1 . . . . 1 1 1 Total Hacks 181 | . 19 . 32 . . . 27 10 16 9 1 . 6 7 28 12 14 Successful 100 | . 8 . 16 . . . 13 6 9 4 1 . 5 6 20 8 4 Failed 80 | . 11 . 15 . . . 14 4 7 5 . . 1 1 8 4 10 Catastrophic 12 | . 1 . 2 . . . 4 . 1 2 . . . . . 1 1 Database Lockouts 1 | . . . 1 . . . . . . . . . . . . . . Manual 111 | . 17 . 25 . 1 . 17 9 9 7 . . 4 4 9 4 5 Terminals 145 | . 16 . 26 . . . 22 10 10 7 . . 6 7 24 7 10 Fabricators 4 | . . . . . . . . . 4 . . . . . . . . Repair Stations 6 | . . . . . . . 4 . . . . . . . . 2 . Recycling Units 3 | . 3 . . . . . . . . . . . . . . . . Scanalyzers 12 | . . . 6 . . . 1 . . . . . . . 3 2 . Garrison Access 10 | . . . . . . . . . 2 2 . . . . 1 1 4 Terminal Hacks 46 | . 3 . 9 . . . 6 2 2 . 1 . 3 4 11 3 2 Record 2 | . . . . . . . . . . . . . . . 1 . 1 Part Schematic 2 | . 1 . . . . . . . . . . . . 1 . . . Robot Analysis 1 | . . . . . . . . . . . . . . . . 1 . Prototype ID Bank 4 | . . . 3 . . . . . . . . . . 1 . . . Open Door 2 | . . . . . . . . . . . 1 . . . . . 1 Level Access Points 4 | . . . . . . . . . . . . . 1 1 1 1 . Branch Access Points 4 | . . . 1 . . . . 1 1 . . . . 1 . . . Machine Index 1 | . . . . . . . . . . . . . . . 1 . . Terminal Index 2 | . . . . . . . . 1 . . . . . . 1 . . Alert Level 1 | . . . . . . . 1 . . . . . . . . . . Unreport Threat 5 | . 1 . 2 . . . 2 . . . . . . . . . . Locate Traps 2 | . . . . . . . 1 . . . . . 1 . . . . Disarm Traps 2 | . . . 1 . . . . . . . . . . . 1 . . Recall Investigation 1 | . 1 . . . . . . . . . . . . . . . . Recall Extermination 2 | . . . . . . . . . . . . . . . 2 . . Hauler Manifests 3 | . . . 1 . . . 2 . . . . . . . . . . Registered Components 4 | . . . 1 . . . . . 1 . . . 1 . 1 . . Zone Layout 4 | . . . . . . . . . . . . . . . 3 1 . Fabricator Hacks 1 | . . . . . . . . . 1 . . . . . . . . Network Status 1 | . . . . . . . . . 1 . . . . . . . . Repair Station Hacks 3 | . . . . . . . 2 . . . . . . . . 1 . Scan Component 2 | . . . . . . . 1 . . . . . . . . 1 . Repair 1 | . . . . . . . 1 . . . . . . . . . . Recycling Unit Hacks . | . . . . . . . . . . . . . . . . . . Scanalyzer 7 | . . . 4 . . . . . . . . . . . 2 1 . Insert Component 4 | . . . 2 . . . . . . . . . . . 1 1 . Analyze 3 | . . . 2 . . . . . . . . . . . 1 . . Garrison Access Hacks 5 | . . . . . . . . . 2 1 . . . . 1 1 . Seal Access 5 | . . . . . . . . . 2 1 . . . . 1 1 . Unauthorized Hacks 37 | . 4 . 3 . . . 5 4 4 3 . . 2 2 6 2 2 Terminals 33 | . 2 . 3 . . . 5 4 2 3 . . 2 2 6 2 2 Assimilate 8 | . . . . . . . . 2 1 1 . . . . 2 1 1 Botnet 22 | . 2 . 3 . . . 3 2 1 2 . . 2 2 3 1 1 Operators 3 | . . . . . . . 2 . . . . . . . 1 . . Fabricators 2 | . . . . . . . . . 2 . . . . . . . . Fabnet 2 | . . . . . . . . . 2 . . . . . . . . Repair Stations . | . . . . . . . . . . . . . . . . . . Recycling Units 2 | . 2 . . . . . . . . . . . . . . . . Tunnel 2 | . 2 . . . . . . . . . . . . . . . . Scanalyzers . | . . . . . . . . . . . . . . . . . . Garrison Access . | . . . . . . . . . . . . . . . . . . Data Cores Recovered . | . . . . . . . . . . . . . . . . . . Used . | . . . . . . . . . . . . . . . . . . Hacking Detections 51 | . 4 . 6 . . . 10 3 6 2 . . 2 2 6 5 5 Full Trace Events 5 | . 2 . 1 . . . 1 . . . . . . . 1 . . Feedback Events . | . . . . . . . . . . . . . . . . . . Feedback Blocked . | . . . . . . . . . . . . . . . . . . Robot Schematics Acquired . | . . . . . . . . . . . . . . . . . . Robots Built . | . . . . . . . . . . . . . . . . . . Authchips . | . . . . . . . . . . . . . . . . . . Time . | . . . . . . . . . . . . . . . . . . Total Robot Build Rating . | . . . . . . . . . . . . . . . . . . Part Schematics Acquired 5 | . 1 . 2 . . . . . . . . . . 1 1 . . Parts Built . | . . . . . . . . . . . . . . . . . . Authchips . | . . . . . . . . . . . . . . . . . . Time . | . . . . . . . . . . . . . . . . . . Total Part Build Rating . | . . . . . . . . . . . . . . . . . . Parts Repaired 1 | . . . . . . . 1 . . . . . . . . . . Time 50 | . . . . . . . 50 . . . . . . . . . . Parts Recycled . | . . . . . . . . . . . . . . . . . . Recycled Matter . | . . . . . . . . . . . . . . . . . . Retrieved Matter . | . . . . . . . . . . . . . . . . . . Retrieved Components . | . . . . . . . . . . . . . . . . . . Parts Scanalyzed 4 | . . . 2 . . . . . . . . . . . 1 1 . Part Schematics Acquired 3 | . . . 2 . . . . . . . . . . . 1 . . Parts Damaged 2 | . . . 1 . . . . . . . . . . . . 1 . Bothacking | -11 -10 -10 -9 -9 -9 -8 -8 -7 -6 -5 -5 -5 -4 -3 -3 -2 -1 ------------ Run | Yrd Mat Min Mat Min Exi Min Mat Fac Fac Fac Upp Upp Fac Res Tes Res Acc Used RIF Installer . | . . . . . . . . . . . . . . . . . . Robots Hacked 1 | . . . . . . . . . . 1 . . . . . . . Non-combat . | . . . . . . . . . . . . . . . . . . Combat 1 | . . . . . . . . . . 1 . . . . . . . Robot Hacks Applied . | . . . . . . . . . . . . . . . . . . Relay Couplers Released . | . . . . . . . . . . . . . . . . . . Fabnet Peak Effective % 6 | . . . . . . . . . . 6 6 6 2 . . . . Autooverrided 1 | . . . . . . . . . . 1 . . . . . . . Robots Rewired 3 | . . . . . 3 . . . . . . . . . . . . Allies Hacked 1 | . . . . . . . . . . . . . . . . . 1 Hacks Repelled . | . . . . . . . . . . . . . . . . . . Allies | -11 -10 -10 -9 -9 -9 -8 -8 -7 -6 -5 -5 -5 -4 -3 -3 -2 -1 -------- Run | Yrd Mat Min Mat Min Exi Min Mat Fac Fac Fac Upp Upp Fac Res Tes Res Acc Total Allies 13 | . . . . 2 3 . . 2 1 2 . . . . 1 1 1 Largest Group 4 | . . . . 2 3 3 . 2 2 4 . . . . 1 1 1 Highest-Rated Group 90 | . . . . 42 42 37 . 52 52 90 . . . . 45 45 45 Highest-Rated Ally 45 | . . . . 31 31 21 . 26 26 26 . . . . 45 45 45 Total Orders 1 | . . . . . . . . . . . . . . . 1 . . STAY 1 | . . . . . . . . . . . . . . . 1 . . Ally Attacks 10 | . . . . . . 6 . . . 4 . . . . . . . Total Damage 143 | . . . . . . 96 . . . 47 . . . . . . . Kills 1 | . . . . . . . . . . 1 . . . . . . . Allies Corrupted . | . . . . . . . . . . . . . . . . . . Allies Melted . | . . . . . . . . . . . . . . . . . . Intel | -11 -10 -10 -9 -9 -9 -8 -8 -7 -6 -5 -5 -5 -4 -3 -3 -2 -1 ------- Run | Yrd Mat Min Mat Min Exi Min Mat Fac Fac Fac Upp Upp Fac Res Tes Res Acc Active Infowar (turns) 6751 | 91 386 . 153 603 821 772 1802 205 265 159 261 97 90 98 410 269 269 Optics 1892 | . . . . . . . . . 239 159 261 97 90 98 410 269 269 Sensors 1793 | . . . . . . . . . 174 156 237 97 86 98 407 269 269 Terrain 1036 | . . . . . . . . . . . . . 4 84 410 269 269 Seismic 4924 | 91 386 . 153 603 821 772 1802 205 91 . . . . . . . . Robot Analysis Total 1 | . . . . . . . . . . . . . . . . 1 . Derelict Logs Recovered 3 | . . . . 1 . . . . . . 2 . . . . . . Drone Launches . | . . . . . . . . . . . . . . . . . . Drone Recoveries . | . . . . . . . . . . . . . . . . . . Exploration | -11 -10 -10 -9 -9 -9 -8 -8 -7 -6 -5 -5 -5 -4 -3 -3 -2 -1 ------------- Run | Yrd Mat Min Mat Min Exi Min Mat Fac Fac Fac Upp Upp Fac Res Tes Res Acc Turns Passed 8656 | 169 1099 451 812 605 821 772 1804 205 265 159 261 97 90 98 410 269 269 Spaces Moved 8673 | 73 561 272 366 366 499 412 844 407 817 444 892 371 216 250 858 549 476 Core 3 | 2 . . . . . . . 1 . . . . . . . . . Treads 139 | 69 51 11 . . . . 7 1 . . . . . . . . . Legs . | . . . . . . . . . . . . . . . . . . Wheels 3261 | 2 510 261 366 366 499 412 837 8 . . . . . . . . . Hover . | . . . . . . . . . . . . . . . . . . Flight 5270 | . . . . . . . . 397 817 444 892 371 216 250 858 549 476 Fastest Speed 23 | 50 140 130 130 145 145 130 135 26 23 23 23 26 26 26 29 29 29 Average Speed 73 | 154 141 142 143 145 145 147 155 30 23 23 23 26 26 27 29 29 29 Slowest Speed 560 | 160 160 240 145 145 145 190 560 240 26 23 26 26 26 29 29 29 29 Overloaded Moves . | . . . . . . . . . . . . . . . . . . Propulsion Burnouts . | . . . . . . . . . . . . . . . . . . Robots Hopped 5 | . . . . . . . . . . 1 . . . . 1 . 3 Potential Cave-ins . | . . . . . . . . . . . . . . . . . . Cave-ins Triggered . | . . . . . . . . . . . . . . . . . . Exploration Rate (%) 44 | 5 86 64 37 81 83 70 54 10 25 15 91 40 8 10 67 27 20 Regions Visited 17 Branch Regions 7 Pre-discovered Areas 3 | . 2 . . 1 . . . . . . . . . . . . . Known Exits Taken 8 | . . . 1 . . . . . . 1 1 1 1 1 1 1 . Unknown Exits Taken 9 | 1 1 1 . 1 1 1 1 1 1 . . . . . . . . Scrap Searched 10 | . . 1 . 1 . 2 . . . . 3 3 . . . . . Spaces Dug 91 | . . . . . . . 1 5 3 6 3 . 2 5 14 27 25 Terrain Destroyed 130 | . . . . . . . 24 5 3 6 3 . 2 5 15 42 25 Melee 70 | . . . . . . . . 5 3 6 3 . 2 5 10 21 15 Projectile 39 | . . . . . . . 24 . . . . . . . 5 . 10 AOE 21 | . . . . . . . . . . . . . . . . 21 . Terrain Rammed . | . . . . . . . . . . . . . . . . . . Walls Destroyed . | . . . . . . . . . . . . . . . . . . Machines Disabled . | . . . . . . . . . . . . . . . . . . Actions | -11 -10 -10 -9 -9 -9 -8 -8 -7 -6 -5 -5 -5 -4 -3 -3 -2 -1 --------- Run | Yrd Mat Min Mat Min Exi Min Mat Fac Fac Fac Upp Upp Fac Res Tes Res Acc Total 10092 | 102 714 300 536 405 599 503 1137 474 871 490 930 370 241 271 980 616 553 Wait 398 | . 25 2 44 18 . 28 67 13 29 28 20 . 18 . 72 7 27 Move 8646 | 72 560 271 365 365 498 411 843 406 816 441 891 370 215 249 855 548 470 Hop 4 | . . . . . . . . . . 1 . . . . 1 . 2 Pick Up 116 | 7 18 1 22 1 4 6 28 10 4 4 1 . 1 3 1 4 1 Fast Attach 67 | 6 5 . 1 . 2 1 15 11 3 2 4 . . 2 9 1 5 Attach 41 | 1 6 3 6 . 1 3 8 3 1 3 . . 1 3 . 2 . Detach 3 | . . . . . 1 . . . . . . . . 1 1 . . Swap 82 | 1 6 2 9 4 . 7 21 2 1 . 1 . 2 3 5 5 13 Drop 142 | . 6 . 20 2 7 8 43 17 5 4 6 . . 5 11 4 4 Fire 382 | 15 88 21 69 15 . 39 112 3 . . . . . . 6 4 10 Melee 107 | . . . . . . . . 9 12 7 7 . 4 5 19 23 21 Ram . | . . . . . . . . . . . . . . . . . . Kick . | . . . . . . . . . . . . . . . . . . Crush . | . . . . . . . . . . . . . . . . . . Escape Stasis 18 | . . . . . . . . . . . . . . . . 18 . Rewire 86 | . . . . . 86 . . . . . . . . . . . . Trap . | . . . . . . . . . . . . . . . . . . Miscellaneous . | . . . . . . . . . . . . . . . . . . Route ------- -11/Scrapyard -10/Materials (discovered 3 exits: *Mat x2 / [*Min]) -10/Mines -9/Materials (discovered 2 exits: *Min x2) -9/Mines (discovered 4 exits: *Mat x2 / *Exi / [*Zio]) -9/Exiles -8/Mines (discovered 2 exits: *Mat x2) -8/Materials -7/Factory (discovered 6 exits: *Fac x2 / *Sto x2 / *Low x2) -6/Factory (discovered 3 exits: *Fac / Low x2) -5/Factory -5/Upper Caves -5/Upper Caves -4/Factory (discovered 4 exits: *Res x4) -3/Research (discovered 6 exits: Res x3 / Arm / *Tes x2) -3/Testing -2/Research (discovered 3 exits: *Acc x3) -1/Access To Epsilon Eridani History --------- Turn | Location | Event 2 | -11/Scrapyard | Met Revision 17 34 | -11/Scrapyard | Discovered new exit (range 15) 170 | -11/Scrapyard | Entered Materials 311 | -10/Materials | Build established: Mutant 375 | -10/Materials | Discovered new exit (range 9) 786 | -10/Materials | Discovered new exit (range 14) 1195 | -10/Materials | Discovered new exit (range 15) 1269 | -10/Materials | Entered Mines 1642 | -10/Mines | Lost 3 parts (1p1n1w) 1684 | -10/Mines | Discovered new exit (range 16) 1720 | -10/Mines | Entered Materials 1720 | -9/Materials | Evolved 2 slots: Propulsion x1, Utility x1 1872 | -9/Materials | Identified exit to Mines 2098 | -9/Materials | Build established: Scavenger-Mutant 2107 | -9/Materials | Central database locked down 2532 | -9/Materials | Entered Mines 2587 | -9/Mines | Discovered new exit (range 10) 2631 | -9/Mines | Build established: Mutant 2672 | -9/Mines | Discovered new exit (range 11) 2728 | -9/Mines | Learned location of Zion (-7) 2756 | -9/Mines | A Derelict revealed a hidden shortcut to a safe place 2863 | -9/Mines | Excavation squad dispatched 2863 | -9/Mines | A large section of the Mines collapsed 3123 | -9/Mines | Deemed a non-threat by the Exiles lab entrance 3123 | -9/Mines | Discovered new exit (range 5) 3137 | -9/Mines | Entered Exiles 3137 | -9/Exiles | Found Exiles lab destroyed 3137 | -9/Exiles | Accompanied by 2 allies 3167 | -9/Exiles | Led the pair of lost Derelicts to a safe place 3284 | -9/Exiles | Opened EX-Vault 3288 | -9/Exiles | Found Prototype Ballistic Gun 3290 | -9/Exiles | Identified AWS/Gauss 3943 | -9/Exiles | Discovered new exit (range 11) 3958 | -9/Exiles | Entered Mines 3958 | -8/Mines | Accompanied by 3 allies 4040 | -8/Mines | Lost 3 allies 4365 | -8/Mines | Lost 4 parts (1p2n1u) 4487 | -8/Mines | Discovered new exit (range 14) 4558 | -8/Mines | Discovered new exit (range 13) 4590 | -8/Mines | Build established: Scavenger-Mutant 4730 | -8/Mines | Entered Materials 4730 | -8/Materials | Evolved 2 slots: Propulsion x1, Utility x1 5734 | -8/Materials | Repaired Adv. Heat Sink? 5849 | -8/Materials | Discovered new exit (range 13) 6534 | -8/Materials | Entered Factory 6534 | -7/Factory | Evolved 2 slots: Propulsion x1, Weapon x1 6591 | -7/Factory | Discovered new exit (range 8) 6605 | -7/Factory | Discovered new exit (range 6) 6681 | -7/Factory | Identified exit to Storage 6681 | -7/Factory | Identified exit to Lower Caves 6702 | -7/Factory | Discovered new exit (range 5) 6704 | -7/Factory | Discovered new exit (range 9) 6739 | -7/Factory | Entered another Factory area 6739 | -6/Factory | Accompanied by 1 ally 6739 | -6/Factory | Evolved 2 slots: Propulsion x1, Utility x1 6869 | -6/Factory | Build established: Hacker-Sprinter 6908 | -6/Factory | Discovered new exit (range 18) 6911 | -6/Factory | Identified exit to Lower Caves 7004 | -6/Factory | Entered another Factory area 7004 | -5/Factory | Accompanied by 2 allies 7004 | -5/Factory | Evolved 2 slots: Utility x2 7156 | -5/Factory | Discovered new exit (range 10) 7159 | -5/Factory | Identified exit to Upper Caves 7163 | -5/Factory | Entered Upper Caves 7227 | -5/Upper Caves | Encountered a Warlord checkpoint 7252 | -5/Upper Caves | Identified exit to Upper Caves 7301 | -5/Upper Caves | Build established: Hacker-Scout 7424 | -5/Upper Caves | Entered another Upper Caves area 7425 | -5/Upper Caves | Discovered new exit (range 11) 7428 | -5/Upper Caves | Identified exit to Factory 7491 | -5/Upper Caves | Encountered a Warlord checkpoint 7521 | -5/Upper Caves | Entered Factory 7521 | -4/Factory | Evolved 2 slots: Power x1, Utility x1 7593 | -4/Factory | Identified exit to Research 7611 | -4/Factory | Entered Research 7611 | -3/Research | Evolved 2 slots: Utility x2 7626 | -3/Research | Identified exit to Armory 7626 | -3/Research | Identified exit to Testing 7626 | -3/Research | Identified exit to Research 7709 | -3/Research | Entered Testing 7868 | -3/Testing | Found Prototype Launcher 7868 | -3/Testing | Identified Mni. Smartbomb Launcher 8010 | -3/Testing | Found Prototype Energy Cannon 8010 | -3/Testing | Identified Disintegrator 8029 | -3/Testing | Spotted PH-E04XCM8LCX 8119 | -3/Testing | Entered Research 8119 | -2/Research | Evolved 2 slots: Utility x2 8223 | -2/Research | Identified exit to Access 8388 | -2/Research | Entered Access 8388 | -1/Access | Evolved 2 slots: Utility x2 8655 | -1/Access | Discovered new exit (range 6) 8656 | -1/Access | Identified exit to Surface 8657 | *** | Escaped! Last Messages --------------- Awaiting botnet instructions. 08603_ U-05 Engineer builds a Wall. 08610_ Sneak attack on U-05 Engineer. 08610_ U-05 Engineer destroyed. 08612_ Acquired 19 matter. 08614_ Sneak attack on U-05 Engineer. 08614_ Destroyed Wheel. 08614_ Destroyed Terrain Scanner. 08614_ U-05 Engineer destroyed. 08616_ Acquired 16 matter. 08622_ Connecting with Garrison Access... 08639_ U-05 Engineer builds a Wall. 08641_ Penetrated by Slug. 08641_ Slug penetrates Wall. 08654_ Connecting with Terminal... >>Open(Door) Sealed Barrier opened. 08655_ The Access Shell folds into the floor. 08655_ EXIT=FOUND 08656_ EXIT=IDENTIFIED: SURFACE Map ----- +----------------------------------------------------+ | ?????????????????????????????????????????????????? | | ?????????????????????????????????????????????????? | | ?????????????????????????????????????????????????? | | ?????????????????????????????????????????????????? | | ????????????????????? ???????????????????????????? | | ????????????????? ???????????????????????????????? | | ?????????????????????????????????????????????????? | | ??????????#???????????? ?????????#???????????????? | | ?????????????????????????????????????????????????? | | ?????????? ??????????????????????????????????????? | | ????????????????????????????? ???????????????????? | | ????????????? ????????????????????? ?????????????? | | ??????????????????????? ?????????????????????????? | | ?????????"??????????? ????????????# ?????????????? | | ??????? ??????????#??????????????????????????????? | | ?????????????????#??? ???????????#???????????????? | | ????????????"? ???## ?? ??????????? ???? ????????? | | ???????? ??? ? ??#?"???????????#?????????????#??? | | ???#???? ? ?? ????????"???"?????????????????????? | | ?????????? ????????#?????????????????????????????? | | ??????????##??#????#""""""""""##?????? ?????????? | | ???#???????????????# #??????????????????? | | ????????#???#???#??# #??#???????????????? | | ? ??? ? #??????????# ##?????????????????? | | ? ???? ????##??????# "" #?#??+????????#??#?? | | ? ??????????????## "@ #????? ???????????? | | ?? ? ??##??##?##??# ##??? ?????????????? | | ???##???##########?# #?????????? ???????? | | #?#?????# ### #??????????????????? | | #?####?#? ### ##??? ?????????????? | | ????#????? " ## #?????????????#???? | | #?####?#? """ ###"" ##? ? ?????? ??????? | | ??###?#?? """ #?#"" #???? ????? ???????? | | ### ? # " ?##"" #?#????????????????? | | #?? ####? ? #?#T #?????? ???????????? | | ##? ???## ? ?##""s #?# ????????????#??? | | #?# ####?? ? ???#""s #??????????????????? | | ##############+#####""s ###???#????????????? | | # ss w ??????? | | # ????? | | # #############################???????? | | " # #################??????#???#????????? | | """ # # !#???????#?????? ????? | | """ + + #? ??????????#?????? | | " # # #? ? ?? ????????????? | | # # # ???"?"????????????? | | # # #???"???????????????? | | # # #? ?????????????????? | | """ """ # # " " # ??????"???????????? | | """G""" # # """ """ #? ?? ??????????????? | +----------------------------------------------------+ Best States ------------- Heat Dissipation 53 Energy Generation 41 Energy Capacity 540 Matter Stores 300 Matter Capacity 300 Sight Range 22 Robot Scan Range 16 Terrain Scan Range 24 Terrain Scan Density 210 Armor Coverage 150 Power Shielding 33 Evasion (%) 65 Targeting Accuracy 16 Recoil Reduction 2 Offensive Hacking 34 Defensive Hacking 32 Item Schematics ----------------- Huge Storage Unit | -10/Materials | Hacked Transport Network Coupler | -9/Materials | Scanalyzed Imp. Flight Unit | -9/Materials | Scanalyzed Impulse Thruster Array | -3/Research | Hacked Q-thruster | -3/Testing | Scanalyzed Robot Schematics ------------------ None Fabricated ------------ Nothing Repaired ---------- Adv. Heat Sink | 6% | -8/Materials Alien Tech Used ----------------- None Achievements -------------- None Challenges ------------ None Game ------ Seed MomentumZioniteConstruct Manual? 0 Play Time 01:46:26 Cumulative 111.4 hours Start 2025.08.29 @ 19:48:53 End 2025.08.29 @ 22:25:40 Sessions 1 Manual Loads 0 Difficulty Rogue Special Mode None Game No. 41 Rogue 37 Adventurer 0 Explorer 4 Win Type 0 Total 5 Types 3/0/1/1/0/0/0/0/0/0 Lore% 68 Gallery% 58 Achievement% 54 Wizard Run 0 Options --------- Layout 1 ASCII 0 Keyboard 0 Movement Mouse Keybinds 0 Fullscreen 2 Font 24/Smallcaps Map View 50x35 Zoom Use 0% Tactical HUD 1 Map Filters NONE Filters NONE Steam 1 RUN: 4dc30f19-5781-421e-ba4e-f1f2d476f487